fUST/lending_fUST_20250805
["ID","MTS","AMOUNT","RATE_DAILY","PERIOD"]
[377348115,1754375440330,-5570.64688426,0.00037804,2]
[377348117,1754375440339,-5570.64688426,0.00037817,2]
[377348119,1754375440348,-5570.64688426,0.00037831,2]
[377348121,1754375440357,-7220.15170081,0.00037834,3]
[377348123,1754375440367,-5570.64688426,0.00037844,2]
[377348125,1754375440377,-150.5,0.0003786,120]
[377348127,1754375440387,-150.5,0.0003787,120]
[377348129,1754375440397,-150.5,0.0003788,120]
[377348131,1754375440406,-502.60875444,0.00037889,120]
[377348133,1754375440416,-108302.275512,0.0003789,3]
[377348135,1754375440425,-216.4206905,0.0003789,3]
[377348137,1754375440435,-159.107,0.00037899,2]
[377348139,1754375440444,-155.0,0.00037899,2]
[377348141,1754375440454,-151.0,0.000379,15]
[377348143,1754375440463,-151.0,0.000379,10]
[377348145,1754375440472,-151.0,0.000379,14]
[377348147,1754375440482,-151.0,0.000379,12]
[377348149,1754375440491,-28285.24,0.000379,14]
[377348151,1754375440500,-203.419237,0.000379,2]
[377348153,1754375440509,-118390.01,0.000379,4]
[377348155,1754375440518,-68970.31693873,0.000379,4]
[377348408,1754375443192,-177.12654243,0.000378,5]
[377348411,1754375443202,-4801.80581445,0.000379,4]
[377348690,1754375446081,-2904.4658425,0.00036383,120]
[377348692,1754375446091,-197.656535,0.000379,14]
[377348694,1754375446100,-13783.88724682,0.000379,4]
[377348696,1754375446109,-469794.34,0.000379,4]
[377348698,1754375446118,-89775.95,0.000379,4]
[377348700,1754375446128,-82090.30316407,0.000379,4]
[377348708,1754375446195,-4086.22239794,0.000379,4]
[377351350,1754375499851,550.0,0.000273,120]
[377356045,1754375552464,5000.0,0.000265,2]
[377356818,1754375560430,5000.0,0.000265,2]
[377357387,1754375566308,2000.0,0.00030631,30]
[377357422,1754375566809,2000.0,0.00030631,30]
[377357456,1754375567227,1029.199999,0.00030631,30]
[377357625,1754375569244,5000.0,0.000265,2]
[377358369,1754375577862,5000.0,0.000265,2]
[377359192,1754375586135,5000.0,0.000265,2]
[377359366,1754375587949,170.95,0.00029061,30]
[377359958,1754375594063,5000.0,0.00027101,2]
[377360752,1754375602178,986.01267184,0.00027101,2]
[377361301,1754375607994,150.0,0.0002469,2]
[377361335,1754375608428,150.0,0.00026935,2]
[377361512,1754375610065,5000.0,0.00027101,2]
[377361830,1754375626888,5000.0,0.00027101,2]
[377361832,1754375643498,3713.98732816,0.00027101,2]
[377361833,1754375643522,1286.01267184,0.00027101,2]
[377361834,1754375659296,5000.0,0.00027101,2]
[377361835,1754375660009,151.96,0.00029087,30]
[377361836,1754375676795,5000.0,0.00027101,2]
[377361838,1754375692683,5000.0,0.00027101,2]
[377361839,1754375703336,2050.98271896,0.00025,2]
[377361840,1754375704960,980.139871,0.00027898,120]
[377361843,1754375709705,1663.0046092,0.00027101,2]
[377361844,1754375709728,3336.9953908,0.00027101,2]
[377361846,1754375725316,5000.0,0.00027101,2]
[377361847,1754375740956,5000.0,0.00027101,2]
[377361848,1754375756852,5000.0,0.00027101,2]
[377361849,1754375774026,1663.0046092,0.00027101,2]
[377361850,1754375774058,3336.9953908,0.00027101,2]
[377361851,1754375780105,1000.0,0.00027878,30]
[377361852,1754375789990,5000.0,0.00027101,2]
[377361853,1754375806329,5000.0,0.00027101,2]
[377361856,1754375821815,5000.0,0.00027101,2]
[377361857,1754375837720,1663.0046092,0.00027101,2]
[377361858,1754375837742,3336.9953908,0.00027101,2]
[377361859,1754375849295,848.599509,0.00025246,2]
[377361860,1754375849876,583.14241576,0.00025507,2]
[377361861,1754375857408,3097.11098115,0.00027101,2]
[377361862,1754375897270,188.39037042,0.00026302,5]
[377361864,1754375928273,11945.76133287,0.00027101,7]
[377361865,1754375928296,11247.04194515,0.00027101,7]
[377363023,1754376039813,1362.81867243,0.00026367,16]
[377363024,1754376039851,1278.37522102,0.00026631,18]
[377363047,1754376099492,550.0,0.000273,120]
[377363048,1754376105184,287.47172873,0.00029507,34]
[377363049,1754376151422,479.942634,0.00025246,2]
[377363050,1754376151779,409.53537207,0.00025507,2]
[377363051,1754376154630,204.76768604,0.00026062,2]
[377363052,1754376163138,167.8,0.0003063,30]
[377363054,1754376235818,13922.76225004,0.00030628,30]
[377363055,1754376324531,180.634838,0.00013699,2]
[377363056,1754376324729,180.634838,0.00020187,2]
[377363057,1754376324923,180.634838,0.00026676,2]
[377363060,1754376456615,507.109117,0.00025778,2]
[377363061,1754376456999,347.95786717,0.00026044,2]
[377363063,1754376569499,3620.54697112,0.00027101,2]
[377363064,1754376569527,1199.27042328,0.00027101,2]
[377363068,1754376620228,160.0,0.0002,7]
[377363069,1754376629364,195600.31330407,0.00027,60]
[377363076,1754376632433,-166.7133097,0.00027178,2]
[377363077,1754376632444,-173.533724,0.00027312,2]
[377363078,1754376632453,-251.75196894,0.00027333,2]
[377363079,1754376632462,-666.0,0.00027433,2]
[377363080,1754376632471,-154.78044,0.00028104,20]
[377363081,1754376632480,-300.0,0.00028275,2]
[377363083,1754376632489,-500.0,0.00028276,2]
[377363084,1754376632499,-596.32074146,0.00028276,2]
[377363086,1754376632509,-258.61279037,0.00028276,2]
[377363088,1754376632518,-481.80487065,0.00028276,2]
[377363090,1754376632527,-18778.26920959,0.00028277,2]
[377363092,1754376632539,-698.9,0.00028277,2]
[377363095,1754376632584,-11555.89579362,0.00028277,2]
[377363096,1754376632594,-1200.0,0.00028277,2]
[377363097,1754376632604,-782.280095,0.00028278,2]
[377363099,1754376632615,-24900.0,0.00028279,2]
[377363101,1754376632625,-154.78044,0.00028408,20]
[377363103,1754376632635,-736.48673927,0.00028528,2]
[377363105,1754376632645,-154.78044,0.00028713,20]
[377363107,1754376632654,-1391.27526038,0.000288,2]
[377363109,1754376632664,-185.43793583,0.00028899,2]
[377363111,1754376632673,-216.4206905,0.000289,10]
[377363113,1754376632682,-160.0,0.000289,10]
[377363115,1754376632692,-1129.24168763,0.000289,10]
[377363117,1754376632703,-6786.81356011,0.000289,10]
[377363120,1754376632714,-1907.51542639,0.000289,10]
[377363122,1754376632726,-5293.94474187,0.000289,10]
[377363124,1754376632735,-527.3554621,0.000289,10]
[377363126,1754376632744,-12655.02535889,0.000289,10]
[377363128,1754376632753,-160.0,0.00028972,2]
[377363130,1754376632762,-154.78044,0.00029017,20]
[377363132,1754376632771,-514.00416747,0.0003,2]
[377363134,1754376632780,-500.0,0.00030243,5]
[377363136,1754376632789,-420.0,0.00030528,2]
[377363138,1754376632798,-514.12,0.00030543,2]
[377363140,1754376632808,-411.45,0.0003062,10]
[377363142,1754376632818,-1000.0,0.00030628,14]
[377363144,1754376632827,-910.83,0.0003063,120]
[377363146,1754376632837,-910.83,0.0003063,120]
[377363148,1754376632846,-910.83,0.0003063,120]
[377363150,1754376632855,-910.83,0.0003063,120]
[377363152,1754376632866,-910.83,0.0003063,120]
[377363154,1754376632876,-910.83,0.0003063,120]
[377363156,1754376632885,-910.83,0.0003063,120]
[377363158,1754376632894,-910.83,0.0003063,120]
[377363160,1754376632904,-910.83,0.0003063,120]
[377363162,1754376632914,-910.83,0.0003063,120]
[377363164,1754376632923,-910.83,0.0003063,120]
[377363167,1754376632933,-910.83,0.0003063,120]
[377363169,1754376632942,-910.83,0.0003063,120]
[377363171,1754376632951,-910.83,0.0003063,120]
[377363172,1754376632961,-910.83,0.0003063,120]
[377363174,1754376632970,-910.83,0.0003063,120]
[377363176,1754376632980,-910.83,0.0003063,120]
[377363178,1754376632989,-910.83,0.0003063,120]
[377363180,1754376632998,-910.83,0.0003063,120]
[377363182,1754376633008,-910.83,0.0003063,120]
[377363184,1754376633018,-910.83,0.0003063,120]
[377363186,1754376633027,-910.83,0.0003063,120]
[377363188,1754376633036,-910.83,0.0003063,120]
[377363190,1754376633046,-910.98452808,0.0003063,120]
[377363192,1754376633055,-231.72586818,0.00030651,2]
[377363194,1754376633065,-154.78044,0.00030659,2]
[377363196,1754376633074,-160.0,0.00030662,2]
[377363198,1754376633085,-160.0,0.00030662,2]
[377363200,1754376633094,-160.0,0.00030662,2]
[377363202,1754376633104,-160.0,0.00030662,2]
[377363204,1754376633113,-160.0,0.00030662,2]
[377363206,1754376633124,-160.0,0.00030662,2]
[377363208,1754376633135,-461.15695721,0.00030662,2]
[377363210,1754376633147,-160.0,0.00030662,2]
[377363212,1754376633156,-160.0,0.00030662,2]
[377363214,1754376633166,-842.25606042,0.00030662,2]
[377363216,1754376633175,-216.4206905,0.00030662,2]
[377363218,1754376633186,-1000.0,0.00030791,5]
[377363220,1754376633196,-200.0,0.00031103,15]
[377363222,1754376633206,-200.0,0.00031103,15]
[377363224,1754376633216,-200.0,0.00031103,15]
[377363226,1754376633227,-42404.5366202,0.00031295,2]
[377363228,1754376633237,-905.50843414,0.00031339,5]
[377363230,1754376633247,-748.29,0.00032062,3]
[377363231,1754376633257,-374.14,0.00032062,3]
[377363232,1754376633267,-187.07,0.00032062,3]
[377363233,1754376633276,-561.24,0.00032062,3]
[377363234,1754376633286,-42404.5366202,0.00032072,2]
[377363235,1754376633295,-1000.0,0.00032082,14]
[377363236,1754376633305,-160.0,0.000321,2]
[377363237,1754376633314,-1391.27526032,0.00032449,2]
[377363238,1754376633324,-980.139871,0.00032548,120]
[377363239,1754376633333,-260.0,0.00032648,2]
[377363240,1754376633343,-502.60875444,0.00032876,120]
[377363241,1754376633353,-4234.63,0.00032876,120]
[377363242,1754376633364,-2486.79,0.000329,14]
[377363243,1754376633374,-154.78044,0.00032944,2]
[377363244,1754376633384,-587.0,0.00032961,2]
[377363245,1754376633394,-608.06,0.00033,7]
[377363246,1754376633403,-180.634838,0.00033165,2]
[377363247,1754376633413,-360.0,0.00033196,2]
[377363248,1754376633422,-200.0,0.00033313,120]
[377363249,1754376633432,-1496.58,0.00033432,3]
[377363250,1754376633441,-748.28,0.00033432,3]
[377363251,1754376633450,-374.14,0.00033432,3]
[377363252,1754376633459,-736.48673927,0.00033528,2]
[377363253,1754376633469,-1000.0,0.00033537,14]
[377363254,1754376633478,-500.9542177,0.00033573,2]
[377363255,1754376633488,-500.0,0.00033573,2]
[377363256,1754376633498,-200.0,0.000336,120]
[377363257,1754376633507,-367.69824,0.000336,120]
[377363258,1754376633516,-1380.24,0.000336,7]
[377363259,1754376633526,-200.0,0.00033693,120]
[377363261,1754376633536,-4234.63,0.00033698,120]
[377363262,1754376633545,-527.3554621,0.00033698,120]
[377363263,1754376633554,-460.0,0.00033744,2]
[377363264,1754376633563,-216.4206905,0.00033785,120]
[377363266,1754376633572,-200.0,0.0003408,15]
[377363267,1754376633581,-200.0,0.0003408,15]
[377363269,1754376633590,-200.0,0.0003408,15]
[377363271,1754376633599,-240.0,0.0003408,15]
[377363273,1754376633609,-1000.0,0.00034121,2]
[377363275,1754376633619,-560.0,0.00034292,2]
[377363277,1754376633630,-4234.63,0.0003452,120]
[377363279,1754376633640,-4863.04708283,0.0003465,2]
[377363680,1754376639128,-1673.80524149,0.0003465,2]
[377363681,1754376639141,-1500.0,0.00034668,2]
[377363682,1754376639151,-200.0,0.0003475,120]
[377363683,1754376639160,-660.0,0.0003484,2]
[377363684,1754376639170,-1000.0,0.00034991,14]
[377363685,1754376639180,-416.32791025,0.00035,14]
[377363686,1754376639193,-2070.46208975,0.00035,14]
[377363687,1754376639203,-2000.0,0.00035216,2]
[377363688,1754376639212,-154.78044,0.00035229,2]
[377363689,1754376639222,-4234.63,0.00035342,120]
[377363690,1754376639232,-154.78044,0.00035388,7]
[377363691,1754376639241,-760.0,0.00035388,2]
[377363692,1754376639251,-3477.48050151,0.00035413,2]
[377363693,1754376639262,-1793.87723391,0.00035413,2]
[377363694,1754376639274,-1252.40936801,0.00035413,2]
[377363695,1754376639286,-13.08522089,0.00035413,2]
[377363696,1754376639296,-200.0,0.00035459,120]
[377363697,1754376639305,-823.0,0.00035588,2]
[377363698,1754376639315,-1380.24,0.000356,7]
[377363699,1754376639325,-585.41,0.000357,2]
[377363700,1754376639334,-1015.83724637,0.00035764,2]
[377363701,1754376639346,-163.42403843,0.00035764,2]
[377363702,1754376639356,-101.77833065,0.00035798,10]
[377363703,1754376639367,-2004.92166935,0.00035798,10]
[377363704,1754376639377,-608.06,0.000358,7]
[377363705,1754376639387,-180.300562,0.0003581,2]
[377363706,1754376639397,-200.0,0.0003588,120]
[377363707,1754376639406,-9799.73606746,0.00035892,2]
[377363708,1754376639415,-153.549557,0.00035933,30]
[377363709,1754376639435,-860.0,0.00035936,2]
[377363710,1754376639446,-263.0,0.00035962,120]
[377363711,1754376639457,-263.0,0.00035972,120]
[377363712,1754376639466,-500.0,0.00035973,5]
[377363713,1754376639477,-500.0,0.00035973,5]
[377363714,1754376639487,-492.1177271,0.00035973,5]
[377363715,1754376639501,-7.8822729,0.00035973,5]
[377363716,1754376639511,-500.0,0.00035973,5]
[377363717,1754376639522,-500.0,0.00035973,5]
[377363718,1754376639533,-14509.19720284,0.00035982,3]
[377363719,1754376639546,-3180.98447647,0.00035982,3]
[377363720,1754376639559,-1432.77764895,0.00035982,3]
[377363721,1754376639657,-23281.57729194,0.00035982,3]
[377363722,1754376639667,-160.0,0.00035982,3]
[377363723,1754376639677,-263.0,0.00035982,120]
[377363724,1754376639687,-100000.0,0.0003599,2]
[377363725,1754376639697,-160.0,0.00035992,3]
[377363726,1754376639706,-42404.5366202,0.00035992,3]
[377363727,1754376639716,-151.0,0.00036002,2]
[377363728,1754376639726,-151.0,0.00036002,2]
[377363729,1754376639735,-151.0,0.00036002,2]
[377363730,1754376639745,-151.0,0.00036002,2]
[377363731,1754376639755,-151.0,0.00036002,2]
[377363732,1754376639765,-151.0,0.00036002,2]
[377363733,1754376639774,-151.0,0.00036002,2]
[377363734,1754376639784,-151.0,0.00036002,2]
[377363735,1754376639794,-151.0,0.00036002,2]
[377363736,1754376639804,-151.0,0.00036002,2]
[377363737,1754376639814,-151.0,0.00036002,2]
[377363738,1754376639824,-151.0,0.00036002,2]
[377363739,1754376639834,-151.0,0.00036002,2]
[377363740,1754376639843,-151.0,0.00036002,2]
[377363741,1754376639853,-151.0,0.00036002,2]
[377363742,1754376639863,-151.0,0.00036002,2]
[377363743,1754376639875,-151.0,0.00036002,2]
[377363744,1754376639885,-151.0,0.00036002,2]
[377363745,1754376639895,-151.0,0.00036002,2]
[377363746,1754376639904,-151.0,0.00036002,2]
[377363747,1754376639913,-151.0,0.00036002,2]
[377363748,1754376639923,-151.0,0.00036002,2]
[377363749,1754376639932,-151.0,0.00036002,2]
[377363750,1754376639941,-151.0,0.00036002,2]
[377363751,1754376639951,-151.0,0.00036002,2]
[377363752,1754376639961,-151.0,0.00036002,2]
[377363753,1754376639970,-151.0,0.00036002,2]
[377363754,1754376639980,-151.0,0.00036002,2]
[377363755,1754376639990,-151.0,0.00036002,2]
[377363756,1754376639999,-151.0,0.00036002,2]
[377363757,1754376640008,-151.0,0.00036002,2]
[377363758,1754376640017,-151.0,0.00036002,2]
[377363759,1754376640027,-151.0,0.00036002,2]
[377363760,1754376640036,-151.0,0.00036002,2]
[377363761,1754376640046,-151.0,0.00036002,2]
[377363762,1754376640055,-151.0,0.00036002,2]
[377363763,1754376640065,-151.0,0.00036002,2]
[377363764,1754376640074,-151.0,0.00036002,2]
[377363765,1754376640084,-151.0,0.00036002,2]
[377363766,1754376640093,-151.0,0.00036002,2]
[377363768,1754376640103,-151.0,0.00036002,2]
[377363769,1754376640112,-151.0,0.00036002,2]
[377363770,1754376640121,-151.0,0.00036002,2]
[377363771,1754376640131,-151.0,0.00036002,2]
[377363772,1754376640143,-151.0,0.00036002,2]
[377363773,1754376640153,-151.0,0.00036002,2]
[377363774,1754376640162,-154.09101441,0.00036002,2]
[377363775,1754376640171,-1391.27526032,0.00036097,2]
[377363776,1754376640182,-4234.63,0.00036164,120]
[377363777,1754376640192,-6536.85232432,0.00036175,2]
[377363778,1754376640202,-3000.0,0.00036188,10]
[377363779,1754376640211,-4445.79740254,0.00036383,120]
[377363780,1754376640223,-1000.0,0.00036446,14]
[377363781,1754376640234,-960.0,0.00036484,2]
[377363782,1754376640244,-500.0,0.00036521,5]
[377363783,1754376640253,-4000.0,0.00036582,10]
[377363784,1754376640263,-320.6324292,0.00036755,30]
[377363785,1754376640273,-319.8391372,0.00036755,30]
[377363786,1754376640282,-160.3162146,0.00036756,30]
[377363787,1754376640291,-197.5471078,0.00036756,30]
[377363788,1754376640301,-400.9420535,0.00036756,30]
[377363789,1754376640310,-589.2673874,0.00036756,30]
[377363790,1754376640319,-153.0,0.00036756,30]
[377363791,1754376640328,-153.0,0.00036756,30]
[377363792,1754376640338,-153.0,0.00036756,30]
[377363793,1754376640347,-153.0,0.00036756,30]
[377363794,1754376640356,-153.0,0.00036756,30]
[377363795,1754376640366,-160.3162146,0.00036756,30]
[377363796,1754376640379,-430.7234783,0.00036756,30]
[377363797,1754376640388,-2486.79,0.000368,14]
[377363798,1754376640397,-9799.73606745,0.00036846,2]
[377363799,1754376640406,-154.78044,0.00036876,7]
[377363800,1754376640415,-6536.85232432,0.00036938,2]
[377363801,1754376640424,-42404.5366202,0.00036963,3]
[377363802,1754376640433,-84809.0732403,0.0003697,3]
[377363803,1754376640443,-500.0,0.00036973,5]
[377363804,1754376640452,-502.07498158,0.00036973,5]
[377363805,1754376640461,-500.0,0.00036973,5]
[377363806,1754376640470,-500.0,0.00036973,5]
[377363807,1754376640480,-500.0,0.00036973,5]
[377363808,1754376640489,-150.0,0.00036973,5]
[377363809,1754376640498,-503.5094732,0.00036973,5]
[377363810,1754376640507,-275.76878478,0.00036973,5]
[377363811,1754376640516,-500.0,0.00036973,5]
[377363812,1754376640530,-500.0,0.00036973,5]
[377363813,1754376640539,-500.0,0.00036973,5]
[377363814,1754376640548,-160.0,0.0003698,3]
[377363815,1754376640558,-4234.63,0.00036986,120]
[377363816,1754376640567,-5000.0,0.00036992,10]
[377363817,1754376640576,-151.0,0.00037,120]
[377363818,1754376640585,-160.0,0.00037,3]
[377363819,1754376640594,-514.12,0.0003702,2]
[377363820,1754376640604,-1060.0,0.00037032,2]
[377363821,1754376640613,-1380.24,0.000371,7]
[377363822,1754376640623,-980.139871,0.00037197,120]
[377363823,1754376640633,-200.0,0.00037341,15]
[377363824,1754376640642,-200.0,0.00037341,15]
[377363825,1754376640652,-200.0,0.00037341,15]
[377363826,1754376640661,-200.0,0.00037341,15]
[377363827,1754376640671,-375.0,0.00037341,15]
[377363828,1754376640681,-636.0,0.00037341,2]
[377363829,1754376640690,-2148.0,0.00037341,2]
[377363830,1754376640699,-982.315,0.00037341,2]
[377363831,1754376640709,-3000.0,0.00037396,10]
[377363832,1754376640718,-527.3554621,0.000374,10]
[377363833,1754376640728,-23339.47133625,0.000375,2]
[377363834,1754376640737,-154.78044,0.00037514,2]
[377363835,1754376640747,-509.11562668,0.00037521,5]
[377363836,1754376640756,-1000.0,0.00037521,5]
[377363837,1754376640766,-1000.0,0.00037521,5]
[377363838,1754376640776,-250.0,0.00037521,5]
[377363839,1754376640786,-1036.50230585,0.00037521,5]
[377363840,1754376640796,-2000.0,0.00037582,10]
[377363841,1754376640806,-6536.85232432,0.000377,2]
[377363842,1754376640815,-1147.0,0.00037749,120]
[377363843,1754376640825,-1147.0,0.00037759,120]
[377363844,1754376640834,-203.09374552,0.00037767,2]
[377363845,1754376640844,-578.07359652,0.00037767,2]
[377363846,1754376640853,-2312.29438609,0.00037767,2]
[377363847,1754376640863,-5197.45970634,0.00037767,2]
[377363848,1754376640874,-1147.0,0.00037769,120]
[377363849,1754376640884,-502.27320293,0.00037773,5]
[377363850,1754376640893,-150.0,0.00037773,3]
[377363851,1754376640903,-500.0,0.00037773,5]
[377363852,1754376640912,-246783.63156708,0.00037799,2]
[377363853,1754376640926,-24496.74341036,0.00037799,2]
[377363854,1754376640936,-133551.698263,0.000378,120]
[377363855,1754376640947,-35257.66,0.000378,14]
[377363856,1754376640957,-151.0,0.000378,18]
[377363857,1754376640967,-151.0,0.000378,19]
[377363858,1754376640976,-10820.67751803,0.000378,2]
[377363859,1754376640986,-9799.73606745,0.000378,2]
[377363860,1754376640995,-4234.63,0.00037808,120]
[377363861,1754376641005,-500.0,0.00037873,5]
[377363862,1754376641015,-500.0,0.00037873,5]
[377363863,1754376641024,-161.6539585,0.0003789,30]
[377363864,1754376641034,-160.3162146,0.0003789,30]
[377363865,1754376641044,-587.9427917,0.0003789,30]
[377363866,1754376641053,-430.7234783,0.0003789,30]
[377363867,1754376641063,-430.7234783,0.0003789,30]
[377363868,1754376641072,-430.7234783,0.0003789,30]
[377363869,1754376641081,-430.7234783,0.0003789,30]
[377363870,1754376641091,-430.7234783,0.0003789,30]
[377363871,1754376641101,-865.9882188,0.0003789,30]
[377363872,1754376641110,-160.3162146,0.0003789,30]
[377363873,1754376641121,-159.107,0.00037898,2]
[377363874,1754376641130,-151.0,0.00037899,15]
[377363875,1754376641142,-151.0,0.00037899,15]
[377363876,1754376641151,-151.0,0.00037899,15]
[377363877,1754376641162,-151.0,0.00037899,15]
[377363878,1754376641172,-151.0,0.00037899,15]
[377363879,1754376641181,-151.0,0.00037899,15]
[377363880,1754376641192,-151.0,0.00037899,15]
[377363881,1754376641201,-151.0,0.00037899,15]
[377363882,1754376641213,-151.0,0.00037899,15]
[377363883,1754376641225,-151.0,0.00037899,15]
[377363884,1754376641234,-300.0,0.00037899,15]
[377363885,1754376641244,-252.08147018,0.00037899,15]
[377363886,1754376641255,-300.0,0.00037899,15]
[377363888,1754376641265,-165.30763314,0.00037899,15]
[377363890,1754376641274,-151.0,0.00037899,15]
[377363892,1754376641285,-151.0,0.00037899,15]
[377363894,1754376641294,-500.0,0.00037899,15]
[377363896,1754376641304,-151.0,0.00037899,15]
[377363898,1754376641314,-151.0,0.00037899,15]
[377363900,1754376641323,-500.0,0.00037899,15]
[377363902,1754376641333,-151.0,0.00037899,15]
[377363904,1754376641342,-500.0,0.00037899,15]
[377363905,1754376641352,-151.0,0.00037899,15]
[377363906,1754376641361,-500.0,0.00037899,15]
[377363907,1754376641371,-151.0,0.00037899,15]
[377363908,1754376641380,-500.0,0.00037899,15]
[377363909,1754376641389,-151.0,0.00037899,15]
[377363910,1754376641399,-500.0,0.00037899,15]
[377363911,1754376641408,-151.0,0.00037899,15]
[377363912,1754376641532,-500.0,0.00037899,15]
[377363913,1754376641542,-151.0,0.00037899,15]
[377363914,1754376641552,-500.0,0.00037899,15]
[377363915,1754376641561,-151.0,0.00037899,15]
[377363916,1754376641572,-500.0,0.00037899,15]
[377363917,1754376641581,-151.0,0.00037899,15]
[377363918,1754376641591,-151.0,0.00037899,15]
[377363919,1754376641600,-500.0,0.00037899,15]
[377363920,1754376641610,-500.0,0.00037899,15]
[377363921,1754376641619,-2183.31810187,0.00037899,15]
[377363922,1754376641629,-151.0,0.00037899,15]
[377363924,1754376641639,-2264.10087164,0.00037899,15]
[377363926,1754376641648,-151.0,0.00037899,15]
[377363928,1754376641657,-2347.87260389,0.00037899,15]
[377363930,1754376641667,-151.0,0.00037899,15]
[377363932,1754376641676,-2434.74389024,0.00037899,15]
[377363934,1754376641685,-172.19305179,0.00037899,15]
[377363935,1754376641694,-2524.82941417,0.00037899,15]
[377363936,1754376641704,-2618.2481025,0.00037899,15]
[377363937,1754376641713,-151.0,0.000379,12]
[377363938,1754376641722,-151.0,0.000379,20]
[377363939,1754376641732,-151.0,0.000379,18]
[377363940,1754376641741,-154.73278,0.000379,14]
[377363941,1754376641750,-153.214716,0.000379,14]
[377363942,1754376641760,-151.0,0.000379,14]
[377363944,1754376641769,-151.0,0.000379,14]
[377363946,1754376641778,-152.64615,0.000379,14]
[377363948,1754376641787,-151.0,0.000379,14]
[377363950,1754376641796,-151.0,0.000379,14]
[377363952,1754376641805,-153.197323,0.000379,14]
[377363954,1754376641814,-151.0,0.000379,14]
[377363956,1754376641823,-165.080572,0.000379,14]
[377363958,1754376641832,-203.419237,0.000379,2]
[377363961,1754376641842,-151.0,0.000379,14]
[377363963,1754376641851,-294781.54443799,0.000379,4]
[377363965,1754376641861,-446.32622109,0.000379,4]
[377363977,1754376641991,-2031.14277485,0.00037899,15]
[377363979,1754376642002,-350.8164,0.00037899,15]
[377363981,1754376642014,-333.16410744,0.00037899,15]
[377363983,1754376642023,-26.8286494,0.00037899,15]
[377364108,1754376643343,-2788.75419434,0.00037899,15]
[377364110,1754376643353,-537.08498906,0.00037899,15]
[377364225,1754376646392,-336.41000001,0.00030628,3]
[377364282,1754376650977,-105.08846517,0.00030628,3]
[377364283,1754376650987,-1077.53956931,0.00037899,15]
[377364284,1754376650996,-33170.35377891,0.000379,4]
[377364285,1754376651006,-518655.48,0.000379,4]
[377364286,1754376651015,-802.62979209,0.000379,14]
[377364287,1754376651025,-500.0,0.00037973,5]
[377364288,1754376651034,-150.97047355,0.00037973,5]
[377364289,1754376651044,-69652.74783005,0.00038,2]
[377364290,1754376651053,-53130.60688464,0.00038,30]
[377364291,1754376651063,-527.3554621,0.00038,30]
[377364292,1754376651072,-503.98581945,0.00038,14]
[377364293,1754376651082,-506.13681389,0.00038068,5]
[377364294,1754376651092,-1169.54080005,0.00038068,5]
[377364295,1754376651101,-350.0,0.00038068,5]
[377364296,1754376651111,-514.12,0.0003816,2]
[377364297,1754376651120,-608.06,0.000382,7]
[377364298,1754376651130,-460.0,0.00038356,120]
[377364299,1754376651139,-433.31143127,0.00038356,120]
[377364300,1754376651153,-460.0,0.00038356,7]
[377364301,1754376651162,-460.0,0.00038356,7]
[377364302,1754376651171,-461.93760902,0.00038356,120]
[377364303,1754376651181,-460.0,0.00038356,120]